[Event "Leca Open 2022"]
[Site "Leca da Palmeira"]
[Date "2022.08.04"]
[Round "7.5"]
[White "Balaji, Aaravamudhan"]
[Black "Das, Sayantan"]
[Result "1-0"]
[ECO "E73"]
[WhiteElo "2228"]
[BlackElo "2449"]
[Annotator "TA"]
[PlyCount "140"]
[EventDate "2022.08.02"]
[EventType "swiss"]
[EventCountry "POR"]
[SourceTitle "playchess.com"]
[Source "ChessBase"]
[SourceQuality "1"]
[TimeControl "5400+30"]

{[%evp 12,140,51,30,29,35,24,50,41,50,43,-103,36,14,5,-47,-48,-45,-10,-27,0,0,0,0,0,0,33,18,33,25,64,56,84,48,179,173,295,287,354,334,422,423,397,289,306,273,266,245,233,220,228,192,347,343,328,314,345,345,338,338,348,333,437,430,420,395,437,435,485,501,517,501,686,691,684,678,663,645,607,568,532,405,436,410,504,475,458,480,475,455,456,442,455,422,406,388,331,0,391,390,506,495,589,581,557,550,528,534,1049,1037,1549,1407,1675,1404,3214,2455,4476,4637,4637,4637,29975,29974,29979,29980,29980,29981,29981,29982,29982,29983,29981]} 1. d4 {[%emt 0:00:17]} Nf6 {[%emt 0:00:16]} 2. c4 {[%emt 0:00:08]} g6 {[%emt 0:00:09]} 3. Nc3 {[%emt 0:00:06]} Bg7 {[%emt 0:00:08]} 4. e4 {[%emt 0:00:04]} d6 {[%emt 0:00:07]} 5. Be2 {[%emt 0:00:04]} O-O {[%emt 0:00:13]} 6. Be3 {[%emt 0:00:02][%cal Bc1e3,Be3d4,Bd4h8][%mdl 32]} Nbd7 {[%emt 0:00:12]} 7. h4 {[%emt 0:01:21][%cal Bh2h4,Bh4h5,Bh5h6][%mdl 32]} c5 {[%emt 0:08:00] E73: King's Indian: Averbakh Variation without 6...c5.} 8. h5 {[%emt 0:02:55]} Qa5 {[%emt 0:14:56]} 9. Kf1 {[%emt 0:03:45]} cxd4 {[%emt 0:08:53] White is slightly better.} 10. Bxd4 {[%emt 0:00:03] [#]} Nc5 $146 {[%emt 0:01:23]} ({Predecessor:} 10... Ne5 11. Nh3 Be6 12. Nd5 Bxd5 13. exd5 Ne4 14. Qc2 Nf6 15. Ng5 h6 16. Nh3 Rac8 17. Bxe5 dxe5 18. hxg6 Nxd5 {0-1 (32) Bayarmandakh,B (2032)-Mungunkhuu,M Ulaanbaatar 2002}) 11. Nd5 {[%emt 0:10:07]} (11. Qc2 $14 {keeps the upper hand.}) 11... Qd8 {[%emt 0:06:00]} (11... Nxd5 $17 12. Bxg7 Nxe4 13. cxd5 (13. Bxf8 $2 Nd2+ 14. Qxd2 Qxd2 $19) 13... Kxg7 14. Qd4+ Nf6 15. hxg6 fxg6) 12. h6 {[%emt 0:16:04]} Bh8 {[%emt 0:00:26]} 13. e5 {[%emt 0:01:36]} (13. Nxf6+ $11 Bxf6 14. Bxf6 exf6 15. f3) 13... Nxd5 $15 {[%emt 0:07:43]} 14. exd6 {[%emt 0:01:49]} Qxd6 {[%emt 0:01:50] [#] aiming for ...Nf6.} 15. Bxh8 {[%emt 0:01:41]} Ne3+ {[%emt 0:02:08]} 16. fxe3 {[%emt 0:00:07] Strongly threatening Qxd6.} Qxd1+ {[%emt 0:01:45]} 17. Rxd1 {[%emt 0:00:18] And now Bg7 would win.} Kxh8 {[%emt 0:00:02]} 18. Rh4 {[%emt 0:02:46][%cal Bh1h4,Bh4d4,Bd4e4][%mdl 32]} Na4 {[%emt 0:06:32]} 19. Rd2 {[%emt 0:06:50]} Bf5 {[%emt 0:04:14]} 20. Rhd4 {[%emt 0:04:26]} Rac8 {[%emt 0:06:09]} 21. g4 {[%emt 0:05:06]} Be6 {[%emt 0:05:06]} 22. Nh3 {[%emt 0:04:59]} Nb6 {[%emt 0:03:22] White leaves nothing to chance now.} (22... a5 $14) 23. b3 $18 {[%emt 0:00:38]} f6 {[%emt 0:00:26] [#]} (23... Na8 $142 24. Nf4 Nc7) 24. Re4 $1 {[%emt 0:10:15]} Rc6 {[%emt 0:07:34]} 25. Nf4 {[%emt 0:04:49]} Bc8 {[%emt 0:00:38]} 26. Rxe7 {[%emt 0:05:46]} g5 {[%emt 0:00:06]} 27. Nh3 {[%emt 0:02:57][%cal Oe7f7]} Re6 {[%emt 0:02:53]} 28. Rxe6 {[%emt 0:01:52]} Bxe6 {[%emt 0:00:03]} 29. Rd6 {[%emt 0:00:07]} Re8 {[%emt 0:00:30]} 30. Bf3 {[%emt 0:00:54]} Nc8 {[%emt 0:06:38]} 31. Rd4 {[%emt 0:00:25]} b6 $2 {[%emt 0:00:11]} (31... Ne7 32. Bxb7 Ng8) 32. Bc6 {[%emt 0:00:43]} Rf8 {[%emt 0:00:20]} 33. Bd7 {[%emt 0:01:43]} Bf7 {[%emt 0:00:30]} 34. Bxc8 {[%emt 0:03:15]} Rxc8 {[%emt 0:00:02][%mdl 4096] Endgame KRB-KRN} 35. Nf2 {[%emt 0:00:11]} Bg6 {[%emt 0:01:07]} 36. Rd7 {[%emt 0:00:37]} Ra8 {[%emt 0:01:00]} 37. e4 {[%emt 0:01:19]} Kg8 {[%emt 0:00:40]} 38. Ke2 {[%emt 0:01:12]} Kf8 {[%emt 0:00:06]} 39. Ke3 {[%emt 0:00:35]} Bf7 {[%emt 0:00:52]} 40. Rb7 {[%emt 0:00:37]} Bg6 {[%emt 0:00:18]} 41. a4 {[%emt 0:01:25]} Kg8 {[%emt 0:00:48]} 42. Nd1 {[%emt 0:00:35]} Re8 {[%emt 0:02:48]} 43. Nc3 {[%emt 0:00:11]} f5 {[%emt 0:00:04]} 44. gxf5 {[%emt 0:00:23]} Bxf5 {[%emt 0:00:02]} 45. Rg7+ {[%emt 0:00:12]} Kf8 {[%emt 0:00:07]} 46. Rxg5 {[%emt 0:00:09]} Bg6 {[%emt 0:00:06]} 47. Kd4 {[%emt 0:00:46]} Re6 {[%emt 0:00:37]} 48. Re5 {[%emt 0:01:08]} Rf6 {[%emt 0:00:05]} 49. a5 {[%emt 0:00:51]} Bf7 {[%emt 0:01:12]} 50. axb6 {[%emt 0:00:50]} axb6 {[%emt 0:00:14]} 51. Rb5 {[%emt 0:00:47]} ({Less strong is} 51. Rf5 Rxh6 52. b4 Re6 $18) 51... Rd6+ {[%emt 0:01:32]} 52. Ke3 {[%emt 0:00:54]} Be8 {[%emt 0:00:19]} 53. Rf5+ {[%emt 0:00:45]} Bf7 {[%emt 0:00:40]} 54. Rb5 {[%emt 0:00:51]} Be8 $1 {[%emt 0:00:10]} 55. Rb4 {[%emt 0:00:08]} ({Don't do} 55. Rf5+ Bf7 56. Na4 Rxh6 $18) 55... Re6 {[%emt 0:01:30]} 56. Nd5 {[%emt 0:01:06]} Bg6 {[%emt 0:00:12]} 57. Rxb6 {[%emt 0:00:11]} Rxe4+ {[%emt 0:00:02]} 58. Kf3 {[%emt 0:00:22]} Rh4 {[%emt 0:00:35]} 59. Nf4 {[%emt 0:00:58]} Rxh6 {[%emt 0:02:04] Threatens to win with ...Bh5+.} 60. Nxg6+ {[%emt 0:00:46]} hxg6 {[%emt 0:00:02] KR-KR} 61. c5 {[%emt 0:00:52]} Ke7 {[%emt 0:00:12]} 62. Ke4 {[%emt 0:01:22]} Kd7 {[%emt 0:01:48]} 63. Kd5 {[%emt 0:00:19]} Rh5+ {[%emt 0:00:22]} 64. Kc4 {[%emt 0:00:02]} g5 {[%emt 0:00:05]} 65. Rg6 {[%emt 0:01:11] White threatens b4 and mate.} Rh4+ {[%emt 0:00:15]} 66. Kb5 {[%emt 0:00:19] White mates.} g4 {[%emt 0:00:05]} 67. c6+ {[%emt 0:00:34][%cal Bc5c6,Bc6c7][%mdl 32]} Kc7 {[%emt 0:00:09]} 68. Rg7+ {[%emt 0:00:12]} Kd6 {[%emt 0:00:08]} 69. c7 {[%emt 0:00:53]} Rh8 {[%emt 0:00:26]} 70. Kb6 {[%emt 0:00:14]} Kd5 {Weighted Error Value: White=0.21 (precise) /Black=0.37} 1-0

[Event "Leca Open 2022"]
[Site "Leca da Palmeira"]
[Date "2022.08.03"]
[Round "7.6"]
[White "Stella, Andrea"]
[Black "Sismeiro, Miguel"]
[Result "1-0"]
[ECO "D71"]
[WhiteElo "2443"]
[BlackElo "2162"]
[Annotator "TA"]
[PlyCount "115"]
[EventDate "2022.08.02"]
[EventType "swiss"]
[EventCountry "POR"]
[SourceTitle "playchess.com"]
[Source "ChessBase"]
[SourceQuality "1"]
[TimeControl "5400+30"]

{[%evp 9,115,2,0,15,20,10,8,13,27,33,40,22,25,25,25,7,5,7,5,0,0,0,0,0,30,30,30,31,28,28,22,29,67,48,50,68,54,52,58,44,60,23,25,0,43,43,64,68,69,47,88,73,65,66,60,53,60,53,57,0,0,0,75,15,129,124,120,30,30,15,105,120,93,90,206,206,195,195,197,188,204,162,139,111,117,120,606,606,599,599,584,584,584,557,584,566,557,483,1754,1481,3965,4480,4598,4039,5065,5065,1465,1317]} 1. d4 Nf6 2. c4 g6 3. g3 c6 4. Bg2 d5 5. Qa4 Nfd7 6. cxd5 {D71: Fianchetto Grünfeld: 3 g3 d5 sidelines and 5 cxd5 (without Nf3).} Nb6 {[%csl LRa4,LRd5]} 7. Qd1 cxd5 8. Nc3 {The position is equal.} Bg7 9. e3 O-O {[#]} 10. h3 $146 ({Predecessor:} 10. Nge2 Nc6 11. O-O e6 12. b3 a5 13. a4 Re8 14. Ba3 Bf8 15. Bxf8 Rxf8 16. Nf4 {1-0 (44) Piorun,K (2643)-Ivic,V (2525) Batumi 2019}) 10... Nc6 11. Nge2 e6 12. O-O Nc4 13. b3 Nd6 14. a4 b6 15. Ba3 Re8 16. Rc1 {[%cal Oc3d5]} Ba6 {[#]} 17. Nxd5 $1 Bxe2 18. Qxe2 Nxd4 {[#]} 19. Ne7+ $1 Qxe7 20. exd4 Rad8 21. Rfd1 {White is more active.} Qg5 22. h4 Qf6 23. Bc6 {This bishop pair is nice.} Re7 $1 24. Qe5 Qf5 25. Qxf5 (25. Qxd6 {is interesting.} Rxd6 26. Bxd6 Bf6 27. Bxe7 Bxe7 28. Kg2) 25... exf5 26. d5 f4 27. g4 h5 28. gxh5 gxh5 29. Kg2 Re2 30. Bxd6 (30. Kf3 {is more complex.} Ra2 31. Bxd6 Rxd6 32. Bb5) 30... Rxd6 31. Bb5 Rb2 32. Rc8+ Kh7 33. Rc6 Bf8 34. Rd3 (34. Bd3+ $14 Kh6 35. Bc4) 34... Kg7 $11 35. Kf3 Kf6 (35... Be7 $11) 36. Rc4 (36. Bc4 $1 $16) 36... Bh6 (36... Kg6 $11 {remains equal.}) 37. Rc7 $16 {Threatens to win with Be8.} Bf8 38. Rxa7 ({Better is} 38. Bc4 $16) 38... Rd8 $11 39. Rc7 $36 {[%mdl 2048] White is pushing.} Bc5 {[#]} (39... Bd6 $11 40. Rc6 Ke5) 40. Rxc5 $1 $16 {[%mdl 512]} bxc5 {[%mdl 4096] Endgame KRR-KRB} 41. d6 {[%cal Bd5d6,Bd6d7][%mdl 32]} Rb8 (41... Ke5 $16 {keeps fighting.}) 42. d7 $18 {[%mdl 1024] White has strong compensation.} Ke7 43. Rc3 Kd6 {[#]} 44. a5 $1 {[%cal Ba4a5,Ba5a6][%mdl 32]} Rd2 {[#]} (44... Rd8 45. Rd3+) 45. a6 $1 {b4 is the strong threat.} Rd4 46. Ba4 Ra8 47. Rc1 Rxa4 $2 {[%mdl 8192] This costs Black the game.} 48. bxa4 {White is clearly winning.} Kxd7 49. Rxc5 Rxa6 $16 {KR-KR} 50. a5 Rd6 51. Rxh5 Rd3+ 52. Kxf4 Ra3 53. Rb5 Ke7 (53... Ra4+ $142 54. Kg3 Ke7) 54. h5 $18 {Strongly threatening h6.} Kf8 55. Ke4 Kg7 56. f4 Kh6 57. Rf5 Ra4+ 58. Kd3 {Weighted Error Value: White=0.11 (very precise) /Black=0.31} 1-0

[Event "Leca Open 2022"]
[Site "Leca da Palmeira"]
[Date "2022.08.03"]
[Round "7.8"]
[White "Martins, Bruno Andre Leite"]
[Black "Pandey Srishti"]
[Result "1-0"]
[ECO "D00"]
[WhiteElo "2331"]
[BlackElo "2101"]
[Annotator "TA"]
[PlyCount "81"]
[EventDate "2022.08.02"]
[EventType "swiss"]
[EventCountry "POR"]
[SourceTitle "playchess.com"]
[Source "ChessBase"]
[SourceQuality "1"]
[TimeControl "5400+30"]

{[%evp 9,81,0,0,0,0,0,8,12,15,8,10,8,20,6,42,8,18,8,9,-22,-4,-14,-11,-14,-8,-20,-9,-16,-5,-5,-8,-8,-10,0,31,26,54,41,70,37,73,61,87,74,68,69,104,84,70,0,0,0,0,0,18,18,18,14,89,0,0,0,193,184,152,0,391,383,668,607,29989,29990,29990,29991]} 1. d4 d5 2. Bf4 Nf6 3. e3 c5 4. c3 Nc6 5. Nd2 Bf5 6. Qb3 {D00: 1 d4 d5: Unusual lines.} Qc8 7. Ngf3 e6 8. Nh4 {The position is equal.} Be4 9. f3 Bg6 10. g4 {[%cal Bg2g4,Bg4g5][%mdl 32]} Qd7 {[#]} 11. Bg3 $146 ({Predecessor:} 11. Nxg6 hxg6 12. Qa4 Rc8 13. dxc5 Bxc5 14. O-O-O Qe7 15. Nb3 Bd6 16. Kb1 Bxf4 17. Qxf4 {½-½ (47) Hess,M (2340)-Vogel,R (2437) Gera 2018}) 11... Bd6 12. Be2 O-O 13. g5 Ne8 {[%cal Bf6e8,Be8d6,Bd6f5][%mdl 32]} 14. Bxd6 c4 (14... Nxd6 15. dxc5 Nc8 16. Nxg6 hxg6 17. h4) 15. Qd1 Nxd6 16. Nxg6 fxg6 17. f4 {Against e5} Nf5 18. Nf1 b5 19. Qd2 a5 {[%cal Ba7a5,Ba5a4,Ba4a3][%mdl 32]} 20. Ng3 b4 21. O-O Rfb8 22. e4 Nxg3 23. hxg3 a4 24. Bg4 {Strongly threatening exd5.} Qd6 25. Rae1 $1 {exd5 is the strong threat.} a3 26. exd5 exd5 27. Re6 Qc7 28. Qg2 Rd8 29. Rfe1 (29. Re2 $14 Ne7 30. Be6+ (30. cxb4 Nf5 $11) 30... Kh8 31. Qh2 (31. cxb4 Qa7 $14)) 29... axb2 $11 30. Qxb2 bxc3 31. Qxc3 Qb6 32. Qe3 {aiming for Bf3.} Rac8 33. Rd1 {Threatening f5.} Qb7 (33... Qa7 $11 {keeps the balance.}) 34. Bf3 ({Better is} 34. f5 $1 $16 {[%cal Rf5f6]}) 34... Kf8 35. Re1 {[%cal Of3d5]} Qd7 {[#]} (35... Qa7 $11 36. Bxd5 Nb4) 36. Bg4 $1 $36 {[%cal Oe6f6][%mdl 2048] And now Rf6+! would win. Keeping Black busy.} Qa7 37. Rd1 {White is more active.} (37. Kh1 $16) 37... Re8 $2 {[%mdl 8192] [#]} (37... Kg8 $11 {and Black has nothing to worry.}) 38. f5 $1 {[%cal Bf4f5,Bf5g6][%mdl 32]} Rxe6 (38... gxf5 $2 39. Bxf5 Re7 40. Bxh7 $18) (38... Qb8 39. Qf3 Kg8) 39. Qxe6 ({Weaker is} 39. fxe6 Rd8 $11) 39... Qc7 40. fxg6 Qxg3+ 41. Kh1 {Weighted Error Value: White=0.11 (very precise) /Black=0.58} 1-0

[Event "Leca Open 2022"]
[Site "Leca da Palmeira"]
[Date "2022.08.03"]
[Round "7.9"]
[White "Panesar Vedant"]
[Black "Goncalves, Samuel Jesus P"]
[Result "1-0"]
[ECO "A08"]
[WhiteElo "2318"]
[BlackElo "1957"]
[Annotator "TA"]
[PlyCount "39"]
[EventDate "2022.08.02"]
[EventType "swiss"]
[EventCountry "POR"]
[SourceTitle "playchess.com"]
[Source "ChessBase"]
[SourceQuality "1"]
[TimeControl "5400+30"]

{[%evp 9,39,13,14,21,9,17,54,48,68,58,180,178,178,169,206,202,241,235,233,241,404,404,408,408,383,372,970,958,947,952,29990,767]} 1. Nf3 {[%emt 0:00:20]} d5 {[%emt 0:00:05]} 2. g3 {[%emt 0:00:20]} c5 {[%emt 0:00:06]} 3. Bg2 {[%emt 0:00:27]} Nf6 {[%emt 0:00:07]} 4. O-O {[%emt 0:00:11]} g6 {[%emt 0:00:07]} 5. d4 {[%emt 0:01:17]} cxd4 {[%emt 0:05:38]} 6. Nxd4 {[%emt 0:00:53][%cal Oc2c4,Bf3d4,Bd4b3,Bb3c5][%mdl 32] A08: King's Indian Attack.} Bg7 {[%emt 0:02:50]} 7. c4 {[%emt 0:00:37] 7.Nb3 is the hot move.} e5 {[%emt 0:00:10]} 8. Nb3 {[%emt 0:02:51][%cal Rc4d5] White is slightly better.} d4 $1 {[%emt 0:00:07]} 9. e3 $1 {[%emt 0:01:22][%cal Re3d4] [#]} dxe3 $146 {[%emt 0:15:34]} (9... O-O $14) ({Predecessor:} 9... d3 10. Nc5 Nc6 11. Nc3 O-O 12. Qxd3 Qe7 13. N5e4 Nxe4 14. Bxe4 f5 15. Bd5+ Kh8 {½-½ (38) Kuporosov,V (2510)-Vlassov,N (2425) St Petersburg 1994}) 10. Qxd8+ $18 {[%emt 0:00:08]} ({Don't take} 10. Bxe3 $6 O-O $16) (10. fxe3 Qxd1 11. Rxd1 Nc6 $11) 10... Kxd8 {[%emt 0:00:06]} 11. Bxe3 {[%emt 0:00:11]} Nc6 {[%emt 0:01:12]} 12. Nc3 {[%emt 0:07:17]} Bg4 {[%emt 0:02:37]} 13. Nc5 {[%emt 0:05:26]} Kc8 {[%emt 0:01:16]} 14. b4 {[%emt 0:01:16][%cal Bb2b4,Bb4b5,Bb5c6,Bc6d7][%mdl 32]} Nd7 $2 {[%emt 0:03:51] [#]} (14... e4 15. Rab1 (15. N3xe4 Nxe4 16. Bxe4 Bxa1 $16) 15... Rd8 16. N3xe4 (16. N5xe4 Nxe4 17. Nxe4 Be2 $18) 16... Nxe4) 15. Nxb7 $1 {[%emt 0:01:12][%mdl 512]} Kxb7 {[%emt 0:00:08]} 16. b5 {[%emt 0:00:02][%mdl 64] Pin} e4 {[%emt 0:09:07]} 17. bxc6+ {[%emt 0:02:05]} Ka6 $2 {[%emt 0:00:06] [#]} (17... Kxc6 18. Bxe4+ Kd6 19. Bxa8 Bxc3) 18. Nxe4 $1 {[%emt 0:05:49]} Bxa1 {[%emt 0:05:11]} 19. cxd7 {[%emt 0:00:38]} Be5 {[%emt 0:01:26]} 20. Nc5+ {[%emt 0:00:42] White took control after the opening.  Weighted Error Value: White=0.00 (flawless) /Black=0.82} (20. Rb1 $142 Bd6 21. Nxd6 Rhb8 22. Bb7+ Rxb7 23. Nxb7 Rb8 24. Nc5+ Ka5 25. Rxb8 h5 26. d8=Q#) 1-0

[Event "Leca Open 2022"]
[Site "Leca da Palmeira"]
[Date "2022.08.04"]
[Round "7.10"]
[White "Rodriguez Lopez, Rafael"]
[Black "Prieto Martin, Alfonso"]
[Result "1-0"]
[ECO "B29"]
[WhiteElo "2172"]
[BlackElo "2264"]
[Annotator "TA"]
[PlyCount "141"]
[EventDate "2022.08.02"]
[EventType "swiss"]
[EventCountry "POR"]
[SourceTitle "playchess.com"]
[Source "ChessBase"]
[SourceQuality "1"]
[TimeControl "5400+30"]

{[%evp 13,141,27,31,31,37,35,35,26,36,44,50,34,66,61,59,31,58,28,41,36,29,35,43,40,39,43,41,35,64,37,53,18,67,39,66,61,64,66,111,66,99,82,87,93,82,66,75,0,84,84,83,87,117,33,133,83,96,98,377,350,377,368,454,449,449,439,449,442,465,472,465,459,451,425,420,397,394,232,438,341,350,318,320,339,320,321,579,414,604,229,267,16,104,104,357,348,339,322,413,409,439,422,511,522,458,512,489,512,567,536,612,504,503,489,581,570,840,745,792,766,875,880,850,847,1216,1035,29986,29987,29992,29993]} 1. e4 {[%emt 0:00:03]} c5 2. Nf3 {[%emt 0:00:04]} Nf6 {[%emt 0:00:19]} 3. e5 {[%emt 0:00:22]} Nd5 {[%emt 0:00:06]} 4. Nc3 {[%emt 0:00:09]} e6 {[%emt 0:00:05]} 5. Nxd5 {[%emt 0:00:19]} exd5 {[%emt 0:00:08]} 6. d4 {[%emt 0:00:03]} Nc6 {[%emt 0:00:08]} 7. c3 {[%emt 0:00:20]} d6 {[%emt 0:01:45]} 8. Bb5 {[%emt 0:00:40] B29: Sicilian: 2 Nf3 Nf6 (Nimzowitsch Variation).} Be7 {[%emt 0:02:46]} 9. exd6 Bxd6 {[%emt 0:01:04]} 10. Qe2+ {[%emt 0:01:28] White is slightly better.} Be6 {[%emt 0:01:26]} 11. dxc5 {[%emt 0:00:11]} Bxc5 {[%emt 0:00:38]} 12. Be3 {[#]} Be7 $146 {[%emt 0:06:22]} ({Predecessor:} 12... Bxe3 13. Qxe3 O-O 14. O-O Re8 15. Rfe1 h6 16. Bxc6 bxc6 17. Qc5 Qb6 18. b4 Qxc5 19. bxc5 {0-1 (75) Ivic,V (2548)-Le,T (2501) Chess.com INT 2020}) 13. Nd4 {[%emt 0:00:51] White is more active.} Bd7 {[%emt 0:00:20]} 14. O-O {[%emt 0:06:31]} O-O {[%emt 0:02:35]} 15. Bd3 {[%emt 0:00:39]} g6 {[%emt 0:00:30]} 16. Nf3 {[%emt 0:00:30]} Re8 {[%emt 0:01:32][%cal Oe7c5]} 17. Qd2 {[%emt 0:00:11]} Bg4 {[%emt 0:01:39]} 18. Be2 {[%emt 0:00:24]} Bf6 {[%emt 0:02:49]} 19. Rad1 {[%emt 0:00:49]} Be6 {[%emt 0:04:53]} 20. Nd4 {[%emt 0:10:19]} Rc8 {[%emt 0:05:09]} 21. Bb5 {[%emt 0:01:00]} Bd7 {[%emt 0:06:20]} 22. Ne2 {[%emt 0:08:29]} (22. Nb3 $5 {[%cal Rd2d5]}) 22... a6 {[%emt 0:03:53]} (22... Qa5 $11 23. Qxd5 Be6) 23. Ba4 {[%emt 0:04:36]} Ne5 {[%emt 0:06:25]} 24. Bxd7 {[%emt 0:06:28]} Qxd7 {[%emt 0:01:39]} 25. Nf4 $1 {[%emt 0:00:06]} (25. Qxd5 Qxd5 26. Rxd5 Nc4 $11) 25... Bg7 {[%emt 0:10:35]} 26. Qxd5 {[%emt 0:03:03]} Qe7 {[%emt 0:06:12]} 27. Bc1 {[%emt 0:06:58]} b5 {[%emt 0:03:49]} 28. h3 {[%emt 0:00:36]} h6 {[%emt 0:03:46]} 29. Qd6 {[%emt 0:02:48]} Qb7 {[%emt 0:01:10]} 30. Qd5 {[%emt 0:07:32]} Qe7 {[%emt 0:00:25]} 31. Qb3 {[%emt 0:00:13]} Rc4 {[%emt 0:06:05]} 32. Nd5 {[%emt 0:02:50]} Qh4 {[%emt 0:10:11]} 33. Be3 (33. Qc2 $16) 33... Qh5 (33... Nf3+ $1 $14 34. gxf3 Qxh3) 34. Bf4 {[%emt 0:23:40]} (34. f4 $142 Nd7 35. Rf3) 34... Kh7 {[%emt 0:01:15][%cal Oe5f3]} 35. Bg3 $36 {[%emt 0:00:56][%mdl 2048] White has strong initiative.} Nd7 $2 {[%emt 0:02:04][%mdl 8192]} (35... Rc5 $16 {keeps fighting.}) 36. Ne3 $18 {[%emt 0:01:46]} Nc5 {[%emt 0:00:15]} 37. Qc2 {[%emt 0:00:20]} Rce4 {[%emt 0:00:50]} 38. Rd5 {[%emt 0:00:19]} R4e5 {[%emt 0:02:14]} 39. Bxe5 {[%emt 0:00:22]} Rxe5 {[%emt 0:00:11]} 40. Qd1 {[%emt 0:01:26]} Qh4 41. Rxe5 {[%emt 0:01:41]} Bxe5 {[%emt 0:00:53]} 42. Qd5 {[%emt 0:00:17]} Qe7 {[%emt 0:00:27]} 43. Ng4 {[%emt 0:02:58]} Bg7 {[%emt 0:00:34]} 44. Rd1 {[%emt 0:01:32]} Na4 {[%emt 0:00:30]} 45. a3 {[%emt 0:00:30]} (45. Qd7 $142 Qxd7 46. Rxd7) 45... Qe6 {[%emt 0:00:51]} (45... h5) 46. Qd2 {[%emt 0:00:18]} Qb3 {[%emt 0:00:09]} 47. Rb1 {[%emt 0:01:15]} h5 {[%emt 0:05:23]} 48. Ne3 {[%emt 0:00:15]} Qa2 {[%emt 0:00:37]} 49. Qc2 {[%emt 0:02:34]} f5 $2 {[%emt 0:01:26]} (49... Kg8 {is a better defense.} 50. Qe4 Kh7) 50. g3 {[%emt 0:01:40]} Bh6 {[%emt 0:00:20] [#]} (50... Qf7 $142 51. Rd1 Nc5) 51. Nd1 $2 {[%emt 0:00:37]} (51. Nxf5 $1 Bf8 {[#]} (51... Bg5 52. h4) 52. Rd1 $1) 51... f4 {[%emt 0:00:17]} 52. Qe4 $2 {[%emt 0:00:07] Prevents Qe6.} (52. gxf4 $18 {Strongly threatening f5.} Bxf4 53. c4) 52... fxg3 {[%emt 0:00:30]} (52... Nc5 $11 53. Qc2 (53. Qe7+ Bg7 $11) 53... Qe6) 53. fxg3 $16 {[%emt 0:00:49] Nf2 is the strong threat. Black is now going downhill.} Bg7 $2 {[%emt 0:00:59][%mdl 8192]} (53... Nc5 $16 54. Qc2 (54. Qe7+ Kg8 $14) 54... Qd5) 54. Rc1 $18 {[%emt 0:00:31][%cal Bb1c1,Bc1c2,Bc2e2][%mdl 32]} Nc5 {[%emt 0:00:30]} 55. Qf3 {[%emt 0:00:30]} Qe6 {[%emt 0:01:26]} 56. Nf2 {[%emt 0:00:23][%cal Bd1f2,Bf2d3,Bd3f4][%mdl 32]} Qa2 {[%emt 0:00:53]} 57. Rc2 {[%emt 0:00:31]} Nd7 {[%emt 0:01:00]} 58. Kg2 {[%emt 0:01:23]} Ne5 {[%emt 0:00:06]} 59. Qe4 {[%emt 0:00:19]} Qf7 {[%emt 0:00:43]} 60. Re2 {[%emt 0:00:37]} Nc4 {[%emt 0:00:20]} 61. Nd3 Nd6 62. Qf3 {[%emt 0:00:43]} Nf5 {[%emt 0:01:06]} 63. h4 {[%emt 0:01:38]} Qc4 {[%emt 0:00:53]} 64. Nf4 {[%emt 0:00:35]} Nh6 {[%emt 0:00:21]} 65. Qe4 {[%emt 0:00:38]} Qf7 {[%emt 0:00:38]} 66. Nxh5 {[%emt 0:00:27]} Bf8 {[%emt 0:00:14]} 67. Rf2 {[%emt 0:00:42]} Nf5 {[%emt 0:00:01]} 68. Nf4 {[%emt 0:00:33]} Bc5 {[%emt 0:00:22]} 69. Rf3 {[%emt 0:00:42][%cal Oh4h5] Threatens to win with h5!} Qb3 {[%emt 0:00:33] [#]} 70. Nxg6 $1 {[%emt 0:01:20]} Qxb2+ {[%emt 0:00:30]} (70... Qc4 71. Qxf5) 71. Kh3 {[%emt 0:00:08] Weighted Error Value: White=0.33/Black=0.50} 1-0